bitfinex-derivatives/quotes_BTCF0:USTF0_20210111
["timestamp","ask_amount","ask_price","bid_price","bid_amount"]
[1610368140152,0.0051,34745.0,34730.0,0.10988]
[1610368140552,0.0051,34745.0,34731.0,0.0003777]
[1610368141158,0.0051,34745.0,34744.0,0.13632608]
[1610368141854,0.0051,34745.0,34744.0,0.13670373]
[1610368144056,0.0051,34745.0,34744.0,0.00037765]
[1610368144655,0.0051,34745.0,34731.0,0.00037817]
[1610368144857,0.0051,34745.0,34744.0,0.0003782]
[1610368145056,0.0051,34745.0,34732.0,0.0003782]
[1610368145257,0.0051,34745.0,34739.0,0.13632608]
[1610368145657,0.0051,34745.0,34740.0,0.0003782]
[1610368145859,0.04274,34753.0,34740.0,0.0003782]
[1610368146257,0.2821,34772.0,34740.0,0.0003782]
[1610368146657,0.00035057,34771.0,34740.0,0.0003782]
[1610368146856,0.08532057,34771.0,34740.0,0.0003782]
[1610368147458,0.0003506,34770.0,34740.0,0.0003782]
[1610368147657,0.0003506,34770.0,34731.0,0.0003782]
[1610368149276,0.13632608,34732.0,34731.0,0.0003782]
[1610368149479,0.22358608,34732.0,34731.0,0.0003782]
[1610368149861,0.22358608,34732.0,34727.0,4.6175]
[1610368150075,0.22393687,34732.0,34727.0,4.6175]
[1610368150275,0.00035086,34731.0,34727.0,4.6175]
[1610368150466,0.08615086,34731.0,34727.0,4.6175]
[1610368150665,0.00035086,34731.0,34727.0,4.6175]
[1610368150865,0.00035091,34730.0,34727.0,4.6175]
[1610368151067,0.00035091,34730.0,34681.0,0.1556]
[1610368151274,0.00035091,34730.0,34700.0,0.13632608]
[1610368151467,0.00035095,34731.0,34700.0,0.13632608]
[1610368151669,0.17366,34732.0,34701.0,0.00037631]
[1610368151865,0.00035094,34730.0,34701.0,0.00037631]
[1610368152265,0.0003509,34731.0,34701.0,0.00037631]
[1610368152464,0.00035086,34729.0,34701.0,0.00037631]
[1610368152665,0.00035086,34730.0,34701.0,0.00037631]
[1610368152866,0.08726,34732.0,34701.0,0.00037631]
[1610368153266,0.08726,34732.0,34706.0,0.13632608]
[1610368153668,0.08726,34732.0,34707.0,0.00037621]
[1610368154466,0.2962,34755.0,34707.0,0.00037621]
[1610368154867,3.6109,34751.0,34707.0,0.00037621]
[1610368155067,3.68659,34751.0,34708.0,0.0867]
[1610368155267,0.13632608,34735.0,34734.0,0.13632608]
[1610368156669,0.10597,34738.0,34734.0,0.13632608]
[1610368156869,0.07569,34751.0,34734.0,0.13632608]
[1610368157271,0.07569,34751.0,34748.0,0.13632608]
[1610368158271,2.50454185,34783.0,34748.0,0.13632608]
[1610368158471,0.2713,34783.0,34748.0,0.13632608]
[1610368158670,0.2713,34783.0,34749.0,0.00037586]
[1610368158874,0.05301074,34774.0,34749.0,0.00037586]
[1610368159069,0.2713,34783.0,34749.0,0.00037586]
[1610368159270,0.24986124,34783.0,34771.0,0.13632608]
[1610368160373,3.7246,34784.0,34771.0,0.13632608]
[1610368160773,2.23856132,34798.0,34771.0,0.13632608]
[1610368160973,2.24012927,34804.0,34771.0,0.13632608]
[1610368161375,2.23960438,34808.0,34786.0,0.13632608]
[1610368161773,2.23942601,34809.0,34786.0,0.13632608]
[1610368162174,0.00035031,34808.0,34786.0,0.13632608]
[1610368162374,0.0861,34808.0,34786.0,0.13632608]
[1610368163376,0.0861,34808.0,34800.0,0.13632608]
[1610368163981,0.0831,34808.0,34800.0,0.13632608]
[1610368164176,0.0831,34808.0,34791.0,0.10004]
[1610368164581,0.0831,34808.0,34792.0,0.0864]
[1610368164778,0.0831,34808.0,34793.0,0.0858]
[1610368165378,0.0831,34808.0,34807.0,0.13632608]
[1610368166179,0.0743,34808.0,34807.0,0.13632608]
[1610368166779,0.0469,34808.0,34807.0,0.22272608]
[1610368166982,0.0072,34808.0,34807.0,0.13632608]
[1610368167181,0.13632608,34812.0,34807.0,0.13632608]
[1610368167381,0.13632608,34812.0,34811.0,0.13632608]
[1610368168381,0.10347,34815.0,34811.0,0.13632608]
[1610368168583,0.06027,34815.0,34811.0,0.13632608]
[1610368168783,0.04397,34815.0,34811.0,0.13632608]
[1610368168984,0.2865,34854.0,34811.0,0.13632608]
[1610368169385,0.2865,34854.0,34820.0,0.13632608]
[1610368169586,0.2865,34854.0,34799.0,0.11006]
[1610368169785,0.40013,34854.0,34799.0,0.11006]
[1610368170988,0.40013,34854.0,34791.0,3.75174]
[1610368171387,0.13632608,34800.0,34792.0,0.13632608]
[1610368171989,0.24866608,34800.0,34791.0,3.6517]
[1610368172790,0.11234,34800.0,34791.0,3.737]
[1610368173390,0.07427,34810.0,34799.0,0.13632608]
[1610368174192,0.07427,34810.0,34791.0,0.0853]
[1610368175392,0.07427,34810.0,34809.0,0.13632608]
[1610368176494,0.13632608,34815.0,34809.0,0.13632608]
[1610368176694,0.0855,34814.0,34810.0,0.0869]
[1610368176895,0.13632608,34815.0,34810.0,0.0869]
[1610368177094,0.10582,34816.0,34810.0,0.0869]
[1610368177504,0.09322,34816.0,34815.0,0.13632608]
[1610368177694,3.7315,34836.0,34815.0,0.13632608]
[1610368178513,3.8169,34836.0,34815.0,0.13632608]
[1610368179400,3.7315,34836.0,34824.0,0.13632608]
[1610368179999,3.7315,34836.0,34792.0,0.10323]
[1610368180199,3.8142,34836.0,34792.0,0.10323]
[1610368180400,0.0872,34835.0,34792.0,0.10323]
[1610368180800,0.0872,34835.0,34793.0,0.0873]
[1610368180999,3.8142,34836.0,34793.0,0.0873]
[1610368181199,3.8142,34836.0,34792.0,0.10323]
[1610368181400,0.13632608,34825.0,34821.0,0.13632608]
[1610368181603,0.20513608,34825.0,34821.0,0.13632608]
[1610368182602,0.06881,34825.0,34821.0,0.13632608]
[1610368182802,3.8142,34836.0,34821.0,0.13632608]
[1610368183005,0.0486,34836.0,34821.0,0.13632608]
[1610368183203,0.0221,34836.0,34821.0,0.13632608]
[1610368183403,0.13632608,34851.0,34835.0,0.13632608]
[1610368183804,0.13632608,34851.0,34811.0,0.08825]
[1610368185507,0.11363,34854.0,34844.0,0.13632608]
[1610368185707,2.19895551,34891.0,34844.0,0.13632608]
[1610368186108,0.0872,34863.0,34811.0,0.08825]
[1610368186308,0.3432,34859.0,34811.0,0.08825]
[1610368186709,0.2719,34858.0,34811.0,0.08825]
[1610368187309,0.2719,34858.0,34824.0,4.3317]
[1610368187510,0.13632608,34825.0,34824.0,4.3317]
[1610368187709,0.10005,34837.0,34824.0,4.3317]
[1610368189210,0.05255,34837.0,34824.0,4.3317]
[1610368189410,0.05255,34837.0,34827.0,0.13632608]
[1610368190013,0.087,34836.0,34824.0,4.3317]
[1610368191413,0.05255,34837.0,34824.0,4.3317]
[1610368191612,0.05255,34837.0,34828.0,0.13632608]
[1610368192416,0.05255,34837.0,34811.0,3.6119]
[1610368192615,0.087,34836.0,34811.0,3.6119]
[1610368192816,0.0345,34836.0,34811.0,3.6119]
[1610368193017,0.0296,34836.0,34812.0,0.00038634]
[1610368193216,0.024,34836.0,34812.0,0.00038634]
[1610368193419,0.0131,34836.0,34812.0,0.00038634]
[1610368193617,0.0851,34837.0,34812.0,0.00038634]
[1610368193818,0.0851,34837.0,34821.0,0.13632608]
[1610368194218,0.0851,34837.0,34822.0,0.00038634]
[1610368195721,0.13632608,34823.0,34822.0,0.00038634]
[1610368195921,0.21360608,34823.0,34822.0,0.00038634]
[1610368196121,0.21360608,34823.0,34815.0,0.00038637]
[1610368196322,0.21360608,34823.0,34811.0,3.6119]
[1610368196520,0.21360608,34823.0,34816.0,0.00038641]
[1610368196721,0.21360608,34823.0,34812.0,0.00038638]
[1610368197725,0.13632608,34815.0,34812.0,0.00038638]
[1610368197923,0.0848,34814.0,34812.0,0.00038638]
[1610368198124,0.07728,34823.0,34812.0,0.00038638]
[1610368198926,0.04948,34823.0,34812.0,0.00038638]
[1610368199523,0.02898,34823.0,34812.0,0.00038638]
[1610368199726,0.13632608,34838.0,34822.0,0.13632608]
[1610368200126,0.0849,34837.0,34822.0,0.13632608]
[1610368200325,0.18884,34837.0,34823.0,0.00038631]
[1610368200928,0.18884,34837.0,34823.0,0.08628631]
[1610368201327,0.10394,34837.0,34823.0,0.00038631]
[1610368201527,0.10394,34837.0,34824.0,0.00038617]
[1610368201727,0.10394,34837.0,34836.0,0.13632608]
[1610368202330,0.10394,34837.0,34836.0,0.13671227]
[1610368205431,3.5194,34849.0,34836.0,0.13671227]
[1610368205832,0.13632608,34853.0,34848.0,0.13632608]
[1610368206433,0.13632608,34853.0,34822.0,3.4065]
[1610368206834,0.13632608,34853.0,34823.0,0.00038656]
[1610368207635,0.00034977,34852.0,34823.0,0.00038656]
[1610368207840,0.09997977,34852.0,34827.0,0.13632608]
[1610368208036,0.09963,34852.0,34827.0,0.13632608]
[1610368208237,0.09963,34852.0,34822.0,3.4065]
[1610368208436,0.00034979,34851.0,34822.0,3.4065]
[1610368209637,0.00034979,34851.0,34823.0,0.00038667]
[1610368209839,0.13632608,34824.0,34823.0,0.00038667]
[1610368210039,0.22331608,34824.0,34823.0,0.00038667]
[1610368210239,0.22331608,34824.0,34822.0,3.4065]
[1610368210839,0.22331608,34824.0,34798.0,3.73905]
[1610368211240,0.22331608,34824.0,34799.0,0.00038676]
[1610368211440,0.0853,34823.0,34800.0,0.0869]
[1610368211640,0.22331608,34824.0,34799.0,0.00038676]
[1610368211839,0.08699,34824.0,34809.0,0.13632608]
[1610368212239,0.08699,34824.0,34810.0,0.08588676]
[1610368212440,0.08699,34824.0,34810.0,0.00038676]
[1610368213441,0.08699,34824.0,34811.0,0.0853]
[1610368213641,0.0871,34823.0,34810.0,0.00038676]
[1610368213842,0.13632608,34811.0,34809.0,0.13632608]
[1610368214242,0.13632608,34811.0,34810.0,0.00038679]
[1610368214443,0.08699,34824.0,34810.0,0.00038679]
[1610368214844,0.08699,34824.0,34811.0,0.0866]
[1610368215045,6.30941986,34863.0,34811.0,0.0866]
[1610368215244,0.2781,34851.0,34812.0,0.00038676]
[1610368215647,0.00034985,34850.0,34812.0,0.00038676]
[1610368215844,0.13632608,34833.0,34823.0,0.13632608]
[1610368216045,0.21173608,34833.0,34810.0,0.00038676]
[1610368216245,0.21173608,34833.0,34785.0,0.07576]
[1610368216445,0.21173608,34833.0,34806.0,0.00038513]
[1610368216846,0.21173608,34833.0,34807.0,0.0871]
[1610368217045,0.21173608,34833.0,34808.0,0.00038513]
[1610368217246,0.21173608,34833.0,34807.0,0.00038513]
[1610368217648,0.21173608,34833.0,34809.0,0.00038513]
[1610368217850,0.13632608,34810.0,34808.0,0.00038513]
[1610368218252,0.13632608,34810.0,34799.0,0.00038453]
[1610368218450,0.13632608,34810.0,34809.0,0.00038453]
[1610368218651,0.13632608,34810.0,34799.0,0.00038455]
[1610368218851,0.13632608,34810.0,34798.0,0.09455]
[1610368219050,0.13632608,34810.0,34787.0,4.5266]
[1610368219251,0.13632608,34810.0,34799.0,0.00038455]
[1610368219454,0.13632608,34810.0,34791.0,0.00038455]
[1610368219855,0.10739,34818.0,34800.0,0.00038455]
[1610368220053,0.09056,34811.0,34792.0,0.00038457]
[1610368220253,0.09056,34811.0,34791.0,0.00038459]
[1610368221856,0.13632608,34807.0,34796.0,0.13632608]
[1610368222455,0.13632608,34807.0,34797.0,0.00038462]
[1610368224357,0.09056,34811.0,34797.0,0.00038462]
[1610368224757,0.09056,34811.0,34791.0,0.00038304]
[1610368224957,0.10739,34818.0,34791.0,0.00038304]
[1610368225157,2.25308256,34826.0,34791.0,0.00038304]
[1610368225359,0.00034997,34817.0,34791.0,0.00038304]
[1610368225556,2.25350539,34825.0,34791.0,0.00038304]
[1610368225757,0.10429,34817.0,34791.0,0.00038304]
[1610368225958,0.13632608,34792.0,34791.0,0.00038304]
[1610368227157,0.22237608,34792.0,34791.0,0.00038304]
[1610368227961,0.22237608,34792.0,34777.0,0.0003831]
[1610368228561,0.22237608,34792.0,34774.0,4.4403]
[1610368228562,0.22237608,34792.0,34775.0,0.00038322]
[1610368228759,0.00035016,34791.0,34775.0,0.00038322]
[1610368229159,0.00035016,34791.0,34774.0,4.4403]
[1610368229362,2.0798452,34790.0,34774.0,4.4403]
[1610368229766,0.22237608,34792.0,34739.0,0.1556]
[1610368229767,3.7358,34775.0,34739.0,0.1556]
[1610368229965,0.13632608,34740.0,34739.0,0.1556]
[1610368230364,0.13632608,34740.0,34721.0,3.4064]
[1610368230764,0.13632608,34740.0,34722.0,0.00038352]
[1610368230962,0.13632608,34740.0,34722.0,0.10328352]
[1610368231564,0.13632608,34740.0,34723.0,0.00038355]
[1610368231964,0.07592,34764.0,34739.0,0.13632608]
[1610368232165,0.07592,34764.0,34739.0,0.24092608]
[1610368232865,0.07592,34764.0,34740.0,0.00038377]
[1610368233267,0.2742,34773.0,34740.0,0.00038377]
[1610368233669,3.7358,34775.0,34740.0,0.00038377]
[1610368234267,3.7358,34775.0,34768.0,0.13632608]
[1610368235470,3.7358,34775.0,34765.0,0.07493]
[1610368236174,0.13632608,34766.0,34765.0,0.07493]
[1610368237372,0.13632608,34766.0,34741.0,0.1556]
[1610368238372,0.0729,34770.0,34743.0,0.13632608]
[1610368239372,0.0729,34770.0,34741.0,0.1556]
[1610368240274,0.13632608,34742.0,34741.0,0.1556]
[1610368240473,0.13632608,34742.0,34739.0,0.1046]
[1610368240674,0.13632608,34742.0,34669.0,1.5]
[1610368241073,0.13632608,34742.0,34723.0,0.00039754]
[1610368241276,0.13632608,34742.0,34708.0,0.00039754]
[1610368241474,0.13632608,34742.0,34723.0,0.09804]
[1610368242075,0.13632608,34742.0,34724.0,0.00039757]
[1610368242274,0.2907,34768.0,34729.0,0.13632608]
[1610368244375,0.13632608,34730.0,34729.0,0.13632608]
[1610368245478,0.12842608,34730.0,34729.0,0.13632608]
[1610368245879,0.10084,34763.0,34729.0,0.13632608]
[1610368246290,0.13632608,34740.0,34733.0,0.13632608]
[1610368246484,0.1715,34761.0,34734.0,0.086]
[1610368246681,0.2907,34768.0,34734.0,0.10061]
[1610368247681,0.2907,34768.0,34735.0,0.0857]
[1610368247894,0.2744,34769.0,34735.0,0.0857]
[1610368247895,0.2744,34769.0,34736.0,0.0853]
[1610368248286,0.2837,34783.0,34759.0,0.13632608]
[1610368249280,0.2837,34783.0,34759.0,0.23898608]
[1610368249481,0.2848,34791.0,34760.0,0.0854]
[1610368249881,0.2848,34791.0,34759.0,0.10266]
[1610368250383,0.2848,34791.0,34760.0,0.13632608]
[1610368250583,0.2848,34791.0,34761.0,0.0867]
[1610368250782,0.2848,34791.0,34760.0,0.13632608]
[1610368251183,0.2736,34810.0,34760.0,0.13632608]
[1610368251383,0.2736,34810.0,34761.0,0.00039747]
[1610368251588,0.2956,34809.0,34761.0,0.00039747]
[1610368251783,0.39857,34809.0,34761.0,0.08669747]
[1610368252184,0.39857,34809.0,34762.0,0.00039744]
[1610368252384,0.39857,34809.0,34794.0,0.13632608]
[1610368253184,0.39857,34809.0,34789.0,0.09215]
[1610368253584,0.085,34808.0,34789.0,0.26405]
[1610368253883,0.39857,34809.0,34789.0,0.26405]
[1610368254284,0.39857,34809.0,34790.0,0.00039736]
[1610368254484,0.39857,34809.0,34798.0,0.13632608]
[1610368254685,0.39857,34809.0,34798.0,0.20890608]
[1610368254886,0.085,34808.0,34798.0,0.20890608]
[1610368255086,0.2956,34809.0,34798.0,0.20890608]
[1610368255885,0.2956,34809.0,34798.0,0.07258]
[1610368256485,0.13632608,34799.0,34798.0,0.07258]
[1610368256887,0.13632608,34799.0,34789.0,0.09215]
[1610368257685,0.13632608,34799.0,34728.0,0.281]
[1610368258288,0.13632608,34799.0,34754.0,0.00039918]
[1610368258485,0.13632608,34768.0,34759.0,0.13632608]
[1610368258686,0.13632608,34768.0,34760.0,0.0003992]
[1610368258886,0.13632608,34768.0,34754.0,0.10941]
[1610368260489,0.13632608,34755.0,34754.0,0.10941]
[1610368262904,0.13632608,34755.0,34703.0,0.0857]
[1610368263097,0.13632608,34755.0,34704.0,0.00039947]
[1610368263296,0.13632608,34755.0,34704.0,0.12943016]
[1610368263496,0.2761,34754.0,34704.0,0.09396]
[1610368263695,0.2761,34754.0,34705.0,0.03547109]
[1610368264094,0.13632608,34755.0,34706.0,0.0858]
[1610368264293,0.13632608,34755.0,34707.0,0.0871]
[1610368264495,0.13632608,34728.0,34720.0,0.13632608]
[1610368264694,0.2882,34762.0,34720.0,0.13632608]
[1610368264896,0.08269,34764.0,34720.0,0.22750608]
[1610368265094,0.08269,34764.0,34721.0,0.00039952]
[1610368265294,0.2977,34761.0,34721.0,0.00039952]
[1610368265696,0.08521,34772.0,34721.0,0.00039952]
[1610368265896,0.2793,34782.0,34721.0,0.00039952]
[1610368266097,0.2751,34781.0,34721.0,0.00039952]
[1610368266296,0.2751,34781.0,34721.0,0.08649952]
[1610368266497,0.13632608,34765.0,34760.0,0.13632608]
[1610368266897,0.10023,34791.0,34760.0,0.13632608]
[1610368267099,0.10023,34791.0,34760.0,0.20712608]
[1610368267296,0.10023,34791.0,34761.0,0.00039926]
[1610368268404,0.13632608,34772.0,34761.0,0.00039926]
[1610368268799,0.13632608,34772.0,34760.0,0.0708]
[1610368269000,0.11027,34773.0,34748.0,4.2469]
[1610368269203,0.11027,34773.0,34748.0,4.33012]
[1610368269609,0.11027,34773.0,34749.0,0.00039931]
[1610368270501,0.13632608,34750.0,34749.0,0.00039931]
[1610368271402,0.13632608,34750.0,34748.0,4.33012]
[1610368273216,0.11027,34773.0,34748.0,4.33012]
[1610368273418,0.11027,34773.0,34749.0,0.00039934]
[1610368273813,0.10733,34780.0,34749.0,0.00039934]
[1610368274010,0.10023,34791.0,34749.0,0.00039934]
[1610368274421,2.05794505,34806.0,34752.0,0.13632608]
[1610368274609,2.05926936,34803.0,34752.0,0.13632608]
[1610368274818,2.05926936,34803.0,34753.0,0.00039924]
[1610368275012,2.05932859,34802.0,34753.0,0.00039924]
[1610368275411,0.00035051,34795.0,34753.0,0.00039924]
[1610368275625,0.09378051,34795.0,34753.0,0.00039924]
[1610368276017,0.00035049,34794.0,34753.0,0.00039924]
[1610368276304,0.09343,34795.0,34753.0,0.00039924]
[1610368276505,0.09343,34795.0,34767.0,0.13632608]
[1610368277705,0.09343,34795.0,34768.0,0.00039919]
[1610368278505,0.13632608,34769.0,34768.0,0.00039919]
[1610368278905,0.13632608,34769.0,34763.0,0.00039916]
[1610368279305,0.13632608,34769.0,34768.0,0.00039916]
[1610368279504,0.13632608,34769.0,34764.0,0.00039916]
[1610368279706,0.13632608,34769.0,34762.0,0.08449]
[1610368280109,0.13632608,34769.0,34752.0,4.2941]
[1610368280505,0.09185,34778.0,34753.0,0.0003994]
[1610368280705,0.09185,34778.0,34752.0,4.2941]
[1610368282106,0.09185,34778.0,34753.0,0.00039941]
[1610368282722,0.13632608,34755.0,34753.0,0.00039941]
[1610368282911,0.09185,34778.0,34753.0,0.00039941]
[1610368283517,0.08544,34785.0,34753.0,0.00039941]
[1610368283909,2.07353974,34791.0,34753.0,0.00039941]
[1610368284311,2.07345388,34792.0,34753.0,0.00039941]
[1610368284717,0.13632608,34774.0,34769.0,0.13632608]
[1610368285312,0.13632608,34774.0,34770.0,0.0003992]
[1610368285511,0.13632608,34774.0,34770.0,0.0691592]
[1610368285910,0.13632608,34774.0,34771.0,0.00039917]
[1610368287613,0.13632608,34774.0,34756.0,0.07239]
[1610368287817,0.22044608,34774.0,34756.0,0.07239]
[1610368288212,0.22044608,34774.0,34757.0,0.00039928]
[1610368288612,0.13632608,34758.0,34757.0,0.00039928]
[1610368288814,0.08412,34774.0,34757.0,0.00039928]
[1610368289014,0.00035059,34773.0,34757.0,0.09321]
[1610368289212,2.08017373,34778.0,34758.0,0.00039932]
[1610368289411,2.07999367,34780.0,34758.0,0.00039932]
[1610368289713,0.0823,34782.0,34758.0,0.00039932]
[1610368290915,2.07991956,34787.0,34758.0,0.00039932]
[1610368291113,2.07991956,34787.0,34757.0,0.09321]
[1610368291313,2.07968182,34792.0,34759.0,0.0003992]
[1610368291513,2.07968182,34792.0,34758.0,0.0003992]
[1610368291713,2.07994556,34793.0,34758.0,0.0003992]
[1610368291913,0.00035048,34791.0,34760.0,0.0003992]
[1610368292112,2.08010019,34791.0,34758.0,0.00039979]
[1610368292313,2.08010019,34791.0,34757.0,0.09321]
[1610368292314,0.0003505,34790.0,34761.0,0.00039979]
[1610368292514,2.08060506,34790.0,34761.0,0.00039979]
[1610368292714,2.08060506,34790.0,34759.0,0.00039979]
[1610368292918,0.0003505,34789.0,34762.0,0.00039979]
[1610368293116,0.0003505,34789.0,34771.0,0.00039979]
[1610368293317,2.08059901,34789.0,34771.0,0.00039979]
[1610368293516,2.08031397,34787.0,34767.0,0.10703]
[1610368293715,2.08031397,34787.0,34768.0,0.00039981]
[1610368294316,0.00035052,34786.0,34768.0,0.00039981]
[1610368294717,0.13632608,34769.0,34767.0,0.10703]
[1610368294916,0.13632608,34769.0,34757.0,0.09321]
[1610368295117,0.13632608,34769.0,34748.0,0.08322]
[1610368295316,0.13632608,34769.0,34758.0,0.00039987]
[1610368295520,0.13632608,34769.0,34753.0,0.09266]
[1610368295717,4.4596,34766.0,34753.0,0.09266]
[1610368296518,4.4596,34766.0,34721.0,4.139]
[1610368296718,4.4596,34766.0,34722.0,0.13632608]
[1610368296919,6.54086731,34766.0,34722.0,0.13632608]
[1610368297122,6.54086731,34766.0,34723.0,0.00040001]
[1610368297319,2.08078935,34764.0,34723.0,0.00040001]
[1610368297724,2.08091776,34760.0,34723.0,0.00040001]
[1610368297921,2.18250776,34760.0,34722.0,0.00040007]
[1610368298122,2.08106337,34758.0,34724.0,0.00040007]
[1610368298522,2.08106337,34758.0,34723.0,0.00040007]
[1610368298722,0.13632608,34724.0,34722.0,0.00040009]
[1610368298923,0.13632608,34724.0,34723.0,0.00040009]
[1610368299523,0.06907,34743.0,34722.0,0.00039242]
[1610368299722,0.06907,34743.0,34723.0,0.00039242]
[1610368299924,0.06907,34743.0,34722.0,0.00039242]
[1610368300125,0.292,34754.0,34722.0,0.00039242]
[1610368300326,0.292,34754.0,34724.0,0.00039242]
[1610368300525,0.292,34754.0,34723.0,0.00039239]
[1610368300728,0.292,34754.0,34727.0,0.13632608]
[1610368300925,0.292,34754.0,34727.0,0.23195608]
[1610368301126,0.292,34754.0,34727.0,0.09563]
[1610368301325,0.292,34754.0,34728.0,0.00039246]
[1610368302727,0.13632608,34729.0,34728.0,0.00039246]
[1610368302926,0.13632608,34729.0,34727.0,0.09563]
[1610368303128,0.13632608,34729.0,34721.0,4.139]
[1610368304128,0.23242608,34729.0,34721.0,4.139]
[1610368304729,0.13632608,34722.0,34721.0,4.139]
[1610368304929,0.13632608,34722.0,34712.0,3.662]
[1610368305129,0.13632608,34722.0,34678.0,0.1556]
[1610368305529,0.24612608,34722.0,34679.0,0.00039272]
[1610368305731,0.24612608,34722.0,34679.0,0.10979272]
[1610368306332,0.24612608,34722.0,34680.0,0.00039277]
[1610368306733,0.13632608,34681.0,34680.0,0.00039277]
[1610368307133,0.13632608,34681.0,34679.0,0.1094]
[1610368308733,0.13632608,34680.0,34679.0,0.1094]
[1610368310735,0.13632608,34680.0,34658.0,0.13632608]
[1610368311137,0.13632608,34680.0,34639.0,0.1556]
[1610368311336,0.13632608,34680.0,34659.0,0.00039307]
[1610368311535,0.13632608,34680.0,34659.0,0.09441]
[1610368312738,0.13632608,34669.0,34659.0,0.09441]
[1610368313536,0.1131,34685.0,34659.0,0.09441]
[1610368314739,0.13632608,34660.0,34659.0,0.09441]
[1610368315540,0.22292608,34660.0,34659.0,0.09441]
[1610368316343,0.13632608,34660.0,34659.0,0.09441]
[1610368316542,0.13632608,34660.0,34628.0,3.6731]
[1610368316743,0.13632608,34635.0,34632.0,0.13632608]
[1610368317253,0.13632608,34635.0,34628.0,3.6731]
[1610368318461,0.0866,34665.0,34628.0,3.6731]
[1610368318664,0.08007,34656.0,34628.0,3.77853]
[1610368318864,0.13632608,34650.0,34647.0,0.13632608]
[1610368319260,0.13632608,34650.0,34628.0,3.77853]
[1610368320843,0.13632608,34633.0,34628.0,3.77853]
[1610368321446,0.08832,34662.0,34628.0,3.77853]
[1610368322845,0.13632608,34629.0,34628.0,3.77853]
[1610368323647,0.13632608,34629.0,34628.0,0.10543]
[1610368323848,0.08104,34649.0,34628.0,0.10543]
[1610368324747,3.282,34658.0,34628.0,0.10543]
[1610368324748,3.282,34658.0,34632.0,0.13632608]
[1610368325849,3.282,34658.0,34628.0,0.10543]
[1610368326749,3.282,34658.0,34657.0,0.13632608]
[1610368326950,3.282,34658.0,34657.0,0.20523608]
[1610368327150,0.11012,34670.0,34657.0,0.20494902]
[1610368327550,2.02532212,34753.0,34658.0,0.00039293]
[1610368327950,2.02483079,34761.0,34659.0,0.3179]
[1610368328350,2.02523513,34765.0,34660.0,0.0003928]
[1610368328750,0.13632608,34729.0,34661.0,0.1556]
[1610368329153,0.13632608,34729.0,34662.0,0.00039267]
[1610368330752,0.13632608,34704.0,34662.0,0.00039267]
[1610368330953,0.13632608,34704.0,34661.0,0.2418]
[1610368331154,0.07288,34749.0,34661.0,0.2418]
[1610368331354,0.07288,34749.0,34663.0,0.00039443]
[1610368331553,0.07288,34749.0,34662.0,0.00039443]
[1610368331757,0.0902,34740.0,34664.0,0.00039443]
[1610368331954,0.0902,34740.0,34664.0,0.10458443]
[1610368332155,0.0902,34740.0,34665.0,4.4224]
[1610368332355,0.0902,34740.0,34665.0,4.45789237]
[1610368332556,0.0902,34740.0,34666.0,0.03549205]
[1610368332755,0.0902,34740.0,34700.0,0.13632608]
[1610368333156,0.0902,34740.0,34700.0,0.20569608]
[1610368333957,0.0902,34740.0,34700.0,0.06937]
[1610368334559,0.1762,34740.0,34700.0,0.06937]
[1610368334758,0.13632608,34701.0,34700.0,0.06937]
[1610368335560,0.13632608,34701.0,34693.0,0.07094]
[1610368336159,0.13632608,34701.0,34664.0,0.10419]
[1610368336761,0.09843,34702.0,34665.0,0.00039464]
[1610368337164,0.09843,34702.0,34684.0,3.3149]
[1610368337361,0.09843,34702.0,34677.0,0.09472]
[1610368338762,0.13632608,34686.0,34677.0,0.09472]
[1610368340766,0.13632608,34678.0,34677.0,0.09472]
[1610368341367,0.2952,34716.0,34677.0,0.09472]
[1610368341565,0.2952,34716.0,34677.0,0.09511469]
[1610368341767,0.2952,34716.0,34678.0,0.00039465]
[1610368342567,4.4822,34734.0,34678.0,0.00039465]
[1610368342767,4.4822,34734.0,34701.0,0.13632608]
[1610368342967,4.4822,34734.0,34701.0,0.22399608]
[1610368343769,4.4822,34734.0,34701.0,0.08767]
[1610368344771,0.13632608,34702.0,34701.0,0.08767]
[1610368348075,0.13632608,34702.0,34691.0,0.13632608]
[1610368348875,0.13632608,34693.0,34677.0,0.09472]
[1610368349077,0.13632608,34693.0,34671.0,4.2366]
[1610368349475,0.13632608,34693.0,34678.0,0.00039453]
[1610368349676,0.13632608,34693.0,34678.0,0.07597]
[1610368349877,0.13632608,34693.0,34679.0,0.00039453]
[1610368350276,0.13632608,34693.0,34679.0,0.03550073]
[1610368350978,0.10342,34725.0,34679.0,0.03550073]
[1610368351179,0.005,34700.0,34690.0,0.00039453]
[1610368351579,0.005,34700.0,34680.0,0.03550203]
[1610368351779,0.005,34700.0,34679.0,0.00039459]
[1610368351978,0.005,34700.0,34681.0,0.00039459]
[1610368352382,0.005,34700.0,34680.0,0.00039493]
[1610368352579,0.005,34700.0,34679.0,0.00039496]
[1610368352779,0.005,34700.0,34681.0,0.00039496]
[1610368353179,0.005,34700.0,34680.0,0.00039496]
[1610368353381,0.005,34700.0,34682.0,0.00039496]
[1610368353580,0.005,34700.0,34681.0,0.00039496]
[1610368353980,0.005,34700.0,34683.0,0.00039502]
[1610368354182,0.005,34700.0,34679.0,0.00039502]
[1610368354381,0.005,34700.0,34684.0,0.00039505]
[1610368354781,0.005,34700.0,34679.0,0.00039505]
[1610368354984,0.13632608,34685.0,34678.0,0.07597]
[1610368355180,0.13632608,34685.0,34680.0,0.00039513]
[1610368355381,0.13632608,34685.0,34675.0,0.07049]
[1610368355782,0.13632608,34685.0,34681.0,0.00039288]
[1610368355982,0.13632608,34685.0,34676.0,0.00039288]
[1610368356382,0.06964,34696.0,34676.0,0.00039288]
[1610368356982,0.13632608,34677.0,34676.0,0.00039288]
[1610368357783,0.13632608,34677.0,34633.0,0.0866]
[1610368358286,0.13632608,34677.0,34658.0,0.00039291]
[1610368358487,0.13632608,34677.0,34658.0,0.09502291]
[1610368358885,0.13632608,34660.0,34658.0,0.09463]
[1610368359086,0.13632608,34660.0,34659.0,0.00039291]
[1610368359887,0.13632608,34660.0,34658.0,0.09463]
[1610368360288,0.13632608,34660.0,34659.0,0.00038752]
[1610368361588,0.10695,34686.0,34659.0,0.00038752]
[1610368362290,0.06964,34696.0,34659.0,0.00038752]
[1610368362491,0.005,34700.0,34659.0,0.00038752]
[1610368362892,0.005,34700.0,34662.0,0.13632608]